fUST/lending_fUST_20240828
["ID","MTS","AMOUNT","RATE_DAILY","PERIOD"]
[336421526,1724820648681,-514.44,0.00016438,2]
[336421528,1724820648690,-1347.1,0.00016438,2]
[336421530,1724820648700,-500.0,0.00016438,2]
[336421532,1724820648711,-886.79,0.00016438,2]
[336421534,1724820648720,-500.0,0.00016438,2]
[336421536,1724820648730,-1065.92,0.00016438,2]
[336421538,1724820648740,-1277.59,0.00016438,2]
[336421540,1724820648750,-1021.79,0.00016438,2]
[336421542,1724820648759,-7982.41,0.00016438,2]
[336421544,1724820648769,-701.5,0.00016438,2]
[336421546,1724820648779,-1268.04,0.00016438,2]
[336421548,1724820648788,-3938.81,0.00016438,2]
[336421550,1724820648799,-1448.97,0.00016438,2]
[336421552,1724820648810,-323.174579,0.0001647,2]
[336421554,1724820648821,-271.239222,0.0001647,2]
[336421556,1724820648831,-156.614532,0.0001647,2]
[336421558,1724820648842,-533.26610706,0.000165,2]
[336421560,1724820648852,-1760.21,0.00016712,2]
[336421562,1724820648861,-1080.34,0.00016712,2]
[336421564,1724820648870,-1047.94,0.00016712,2]
[336421566,1724820648881,-514.44,0.00016712,2]
[336421568,1724820648890,-1347.1,0.00016712,2]
[336421570,1724820648900,-522.47936895,0.00016712,2]
[336421572,1724820648910,-886.79,0.00016712,2]
[336421574,1724820648921,-500.0,0.00016712,2]
[336421576,1724820648930,-1065.92,0.00016712,2]
[336421578,1724820648940,-1277.59,0.00016712,2]
[336421580,1724820648950,-1021.79,0.00016712,2]
[336421582,1724820648960,-7982.41,0.00016712,2]
[336421585,1724820648971,-701.5,0.00016712,2]
[336421587,1724820648980,-49.89180175,0.00016712,2]
[336421609,1724820649189,-310.3782227,0.00010958,2]
[336421611,1724820649199,-155.62051957,0.00012356,2]
[336421613,1724820649209,-143.52011397,0.00012782,2]
[336421632,1724820649376,-11.03939144,0.00012782,2]
[336421634,1724820649386,-1218.14819825,0.00016712,2]
[336421636,1724820649396,-3938.81,0.00016712,2]
[336421638,1724820649406,-1448.97,0.00016712,2]
[336421640,1724820649416,-151.0,0.00016986,2]
[336421642,1724820649425,-151.0,0.00016986,2]
[336421644,1724820649435,-151.0,0.00016986,2]
[336421646,1724820649444,-151.0,0.00016986,2]
[336421648,1724820649454,-319.437533,0.00016986,2]
[336421650,1724820649464,-319.437533,0.00016986,2]
[336421652,1724820649473,-1760.21,0.00016986,2]
[336421655,1724820649483,-1080.34,0.00016986,2]
[336421657,1724820649493,-1047.94,0.00016986,2]
[336421659,1724820649503,-514.44,0.00016986,2]
[336421661,1724820649513,-1347.1,0.00016986,2]
[336421663,1724820649523,-886.79,0.00016986,2]
[336421665,1724820649532,-434.04,0.00016986,2]
[336421667,1724820649542,-1065.92,0.00016986,2]
[336421669,1724820649553,-1277.59,0.00016986,2]
[336421671,1724820649563,-1021.79,0.00016986,2]
[336421673,1724820649572,-7982.41,0.00016986,2]
[336421675,1724820649583,-701.5,0.00016986,2]
[336421677,1724820649595,-1268.04,0.00016986,2]
[336421679,1724820649605,-3938.81,0.00016986,2]
[336421682,1724820649617,-1448.97,0.00016986,2]
[336421684,1724820649627,-154.56721181,0.00017,2]
[336421686,1724820649637,-151.0,0.0001726,2]
[336421688,1724820649647,-686.635873,0.0001726,2]
[336421690,1724820649658,-686.635873,0.0001726,2]
[336421692,1724820649671,-1760.27175446,0.0001726,2]
[336421694,1724820649681,-1080.52,0.0001726,2]
[336421696,1724820649692,-1048.17,0.0001726,2]
[336421698,1724820649703,-514.66060562,0.0001726,2]
[336421701,1724820649713,-1347.32,0.0001726,2]
[336421703,1724820649723,-886.79058421,0.0001726,2]
[336421705,1724820649734,-1066.11713312,0.0001726,2]
[336421707,1724820649745,-1277.76601612,0.0001726,2]
[336421709,1724820649758,-1021.85,0.0001726,2]
[336421712,1724820649769,-7982.48931984,0.0001726,2]
[336421714,1724820649780,-701.60766093,0.0001726,2]
[336421730,1724820649920,-1268.14534821,0.0001726,2]
[336421732,1724820649931,-3939.01645239,0.0001726,2]
[336421734,1724820649942,-1449.17418965,0.0001726,2]
[336421736,1724820649953,-150.0,0.00017746,2]
[336421739,1724820649964,-522.0,0.00017746,2]
[336421741,1724820649974,-19863.43740843,0.00017898,2]
[336421743,1724820649985,-4613.62973253,0.00017898,2]
[336421754,1724820650087,-500.0,0.00010958,2]
[336421756,1724820650097,-1404.36,0.00010959,2]
[336421758,1724820650107,-500.0,0.00011232,2]
[336421760,1724820650118,-154.74467129,0.00011731,2]
[336421762,1724820650126,-181.51920641,0.00012436,2]
[336421764,1724820650135,-2144.73852712,0.00012989,2]
[336421766,1724820650145,-500.0,0.00013673,2]
[336421768,1724820650155,-501.20827901,0.00014221,2]
[336421770,1724820650165,-16192.67516407,0.00017898,2]
[336421772,1724820650174,-153.5532754,0.0001818,2]
[336421774,1724820650183,-2400.0,0.00018459,2]
[336421776,1724820650193,-3300.0,0.00018466,2]
[336421778,1724820650202,-1100.0,0.00018478,2]
[336421780,1724820650211,-382.07004296,0.00018607,2]
[336422994,1724820765961,-300.0,0.00010957,2]
[336422995,1724820765992,-300.0,0.00010957,2]
[336422996,1724820766023,-824.95,0.00010958,2]
[336422997,1724820766052,-500.0,0.00010958,2]
[336422998,1724820766080,-500.0,0.00010958,2]
[336422999,1724820766109,-500.0,0.00010958,2]
[336423000,1724820766139,-500.0,0.00010958,2]
[336423001,1724820766172,-500.0,0.00010958,2]
[336423002,1724820766203,-500.0,0.00010958,2]
[336423003,1724820766233,-165.33,0.00010958,2]
[336423004,1724820766262,-500.0,0.00010958,2]
[336423005,1724820766292,-500.0,0.00010958,2]
[336423006,1724820766321,-500.0,0.00010958,2]
[336423007,1724820766351,-318.07656927,0.00010958,2]
[336423008,1724820766384,-500.0,0.00010958,2]
[336423009,1724820766414,-500.0,0.00010958,2]
[336423010,1724820766445,-828.84,0.00010958,2]
[336423011,1724820766474,-500.0,0.00010958,2]
[336423012,1724820766502,-500.0,0.00010958,2]
[336423013,1724820766533,-500.0,0.00010958,2]
[336423014,1724820766565,-25.60686146,0.00010958,2]
[336423017,1724820788951,-300.0,0.00010957,2]
[336423018,1724820788982,-474.39313854,0.00010958,2]
[336423019,1724820789012,-500.0,0.00010958,2]
[336423020,1724820789041,-226.55,0.00010958,2]
[336423021,1724820789070,-500.0,0.00010958,2]
[336423022,1724820789099,-577.1,0.00010958,2]
[336423023,1724820789127,-500.0,0.00010958,2]
[336423024,1724820789159,-500.0,0.00010958,2]
[336423025,1724820789189,-500.0,0.00010958,2]
[336423026,1724820789219,-500.0,0.00010958,2]
[336423027,1724820789249,-638.79,0.00010958,2]
[336423028,1724820789279,-603.74315927,0.00010958,2]
[336423029,1724820789312,-501.32064174,0.00010958,2]
[336423030,1724820789340,-500.0,0.00010958,2]
[336423031,1724820789369,-238.59122016,0.00010958,2]
[336423032,1724820789396,-500.0,0.00010958,2]
[336423033,1724820789427,-500.0,0.00010958,2]
[336423034,1724820789456,-500.0,0.00010958,2]
[336423035,1724820789487,-629.1343867,0.00010958,2]
[336423036,1724820789518,-502.79360828,0.00010958,2]
[336423037,1724820789548,-115.16769062,0.00010958,2]
[336423038,1724820818911,215.0,0.00025,120]
[336423039,1724820930476,-384.83230938,0.00010958,2]
[336423040,1724820930526,-500.0,0.00010958,2]
[336423041,1724820930562,-552.29,0.00010958,2]
[336423042,1724820930595,-500.0,0.00010958,2]
[336423043,1724820930627,-500.0,0.00010958,2]
[336423044,1724820930659,-500.0,0.00010958,2]
[336423045,1724820930692,-1080.57,0.00010958,2]
[336423046,1724820930726,-500.0,0.00010958,2]
[336423047,1724820930759,-500.92747332,0.00010958,2]
[336423048,1724820930789,-500.0,0.00010958,2]
[336423049,1724820930823,-500.0,0.00010958,2]
[336423050,1724820930856,-3947.34,0.00010958,2]
[336423051,1724820930888,-779.87,0.00010958,2]
[336423052,1724820930920,-500.0,0.00010958,2]
[336423053,1724820930949,-500.0,0.00010958,2]
[336423054,1724820930979,-500.0,0.00010958,2]
[336423055,1724820931008,-500.0,0.00010958,2]
[336423056,1724820931049,-500.0,0.00010958,2]
[336423057,1724820931079,-500.0,0.00010958,2]
[336423058,1724820931112,-1542.28,0.00010958,2]
[336423059,1724820931141,-500.0,0.00010958,2]
[336423060,1724820931171,-500.0,0.00010958,2]
[336423061,1724820931204,-500.0,0.00010958,2]
[336423062,1724820931242,-500.0,0.00010958,2]
[336423063,1724820931275,-500.0,0.00010958,2]
[336423064,1724820931306,-500.0,0.00010958,2]
[336423065,1724820931337,-500.0,0.00010958,2]
[336423066,1724820931369,-500.0,0.00010958,2]
[336423067,1724820931408,-500.0,0.00010958,2]
[336423068,1724820931442,-500.0,0.00010958,2]
[336423069,1724820931475,-509.17,0.00010958,2]
[336423070,1724820931510,-500.0,0.00010958,2]
[336423071,1724820931542,-500.0,0.00010958,2]
[336423072,1724820931575,-500.0,0.00010958,2]
[336423073,1724820931608,-500.0,0.00010958,2]
[336423074,1724820931641,-500.0,0.00010958,2]
[336423075,1724820931676,-500.0,0.00010958,2]
[336423076,1724820931705,-675.95,0.00010958,2]
[336423077,1724820931734,-500.0,0.00010958,2]
[336423078,1724820931767,-500.0,0.00010958,2]
[336423079,1724820931796,-500.0,0.00010958,2]
[336423080,1724820931825,-500.0,0.00010958,2]
[336423081,1724820931857,-500.0,0.00010958,2]
[336423082,1724820931888,-500.0,0.00010958,2]
[336423083,1724820931925,-500.0,0.00010958,2]
[336423084,1724820931961,-502.27969708,0.00010958,2]
[336423085,1724820931993,-585.37,0.00010958,2]
[336423086,1724820932026,-500.0,0.00010958,2]
[336423087,1724820932058,-500.0,0.00010958,2]
[336423088,1724820932083,-384.83230938,0.00010958,2]
[336423089,1724820932097,-264.41183721,0.00010958,2]
[336423090,1724820932108,-235.58816279,0.00010958,2]
[336423091,1724820932121,-264.41183721,0.00010958,2]
[336423092,1724820932131,-287.87816279,0.00010958,2]
[336423093,1724820932142,-212.12183721,0.00010958,2]
[336423094,1724820932152,-287.87816279,0.00010958,2]
[336423095,1724820932164,-212.12183721,0.00010958,2]
[336423096,1724820932174,-287.87816279,0.00010958,2]
[336423097,1724820932187,-212.12183721,0.00010958,2]
[336423098,1724820932199,-287.87816279,0.00010958,2]
[336423099,1724820932215,-212.12183721,0.00010958,2]
[336423100,1724820932225,-868.44816279,0.00010958,2]
[336423101,1724820932238,-288.84183721,0.00010958,2]
[336423102,1724820932248,-211.15816279,0.00010958,2]
[336423103,1724820932259,-299.62201443,0.00010958,2]
[336423104,1724820932271,-201.30545889,0.00010958,2]
[336423105,1724820932283,-301.4011558,0.00010958,2]
[336423106,1724820932293,-198.5988442,0.00010958,2]
[336423107,1724820932305,-301.4011558,0.00010958,2]
[336423108,1724820932314,-198.5988442,0.00010958,2]
[336423109,1724820932333,-301.4011558,0.00010958,2]
[336423110,1724820932344,-502.27644926,0.00010958,2]
[336423111,1724820932356,-500.0,0.00010958,2]
[336423112,1724820932367,-500.0,0.00010958,2]
[336423113,1724820932378,-620.97339895,0.00010958,2]
[336423114,1724820932389,-500.0,0.00010958,2]
[336423115,1724820932400,-597.35,0.00010958,2]
[336423116,1724820932412,-425.33899599,0.00010958,2]
[336423117,1724820932427,-257.24100401,0.00010958,2]
[336423118,1724820932437,-500.0,0.00010958,2]
[336423119,1724820932447,-22.62899599,0.00010958,2]
[336423120,1724820932461,-477.37100401,0.00010958,2]
[336423121,1724820932471,-22.62899599,0.00010958,2]
[336423122,1724820932485,-478.74553763,0.00010958,2]
[336423123,1724820932495,-21.25446237,0.00010958,2]
[336423124,1724820932510,-478.74553763,0.00010958,2]
[336423125,1724820932522,-21.25446237,0.00010958,2]
[336423126,1724820932535,-478.74553763,0.00010958,2]
[336423127,1724820932545,-21.25446237,0.00010958,2]
[336423128,1724820932563,-478.74553763,0.00010958,2]
[336423129,1724820932573,-21.25446237,0.00010958,2]
[336423130,1724820932586,-478.74553763,0.00010958,2]
[336423131,1724820932596,-21.25446237,0.00010958,2]
[336423132,1724820932609,-478.74553763,0.00010958,2]
[336423133,1724820932620,-500.0,0.00010958,2]
[336423134,1724820932630,-500.0,0.00010958,2]
[336423135,1724820932640,-63.53446237,0.00010958,2]
[336423136,1724820932653,-436.46553763,0.00010958,2]
[336423137,1724820932662,-63.53446237,0.00010958,2]
[336423138,1724820932674,-436.46553763,0.00010958,2]
[336423139,1724820932685,-63.53446237,0.00010958,2]
[336423140,1724820932699,-436.46553763,0.00010958,2]
[336423141,1724820932709,-63.53446237,0.00010958,2]
[336423142,1724820932721,-436.46553763,0.00010958,2]
[336423143,1724820932731,-63.53446237,0.00010958,2]
[336423144,1724820932744,-436.46553763,0.00010958,2]
[336423145,1724820932755,-63.53446237,0.00010958,2]
[336423146,1724820932811,-436.46553763,0.00010958,2]
[336423147,1724820932822,-63.53446237,0.00010958,2]
[336423148,1724820932849,-436.46553763,0.00010958,2]
[336423149,1724820932861,-63.53446237,0.00010958,2]
[336423150,1724820932875,-436.46553763,0.00010958,2]
[336423151,1724820932885,-63.53446237,0.00010958,2]
[336423152,1724820932898,-500.0,0.00010958,2]
[336423153,1724820932910,-325.41553763,0.00010958,2]
[336423154,1724820932921,-174.58446237,0.00010958,2]
[336423155,1724820932941,-509.17,0.00010958,2]
[336423156,1724820932953,-500.0,0.00010958,2]
[336423157,1724820932965,-115.72553763,0.00010958,2]
[336423158,1724820932976,-384.27446237,0.00010958,2]
[336423159,1724820932988,-115.72553763,0.00010958,2]
[336423160,1724820932999,-384.27446237,0.00010958,2]
[336423161,1724820933011,-115.72553763,0.00010958,2]
[336423162,1724820933021,-384.27446237,0.00010958,2]
[336423163,1724820933035,-115.72553763,0.00010958,2]
[336423164,1724820933045,-384.27446237,0.00010958,2]
[336423165,1724820933056,-115.72553763,0.00010958,2]
[336423166,1724820933066,-384.27446237,0.00010958,2]
[336423167,1724820933078,-115.72553763,0.00010958,2]
[336423168,1724820933088,-540.73,0.00010958,2]
[336423169,1724820933097,-19.49446237,0.00010959,2]
[336423170,1724820933110,-198.41081063,0.00010959,2]
[336423171,1724820933119,-301.58918937,0.00010959,2]
[336423172,1724820933131,-375.67081063,0.00010959,2]
[336423173,1724820933141,-124.32918937,0.00010959,2]
[336423174,1724820933152,-500.0,0.00010959,2]
[336423175,1724820933169,-433.09081063,0.00010959,2]
[336423176,1724820933178,-66.90918937,0.00010959,2]
[336423177,1724820933192,-500.0,0.00010959,2]
[336423178,1724820933208,-314.28081063,0.00010959,2]
[336423179,1724820933217,-185.71918937,0.00010959,2]
[336423180,1724820933230,-500.0,0.00010959,2]
[336423181,1724820933247,-48.60081063,0.00010959,2]
[336423182,1724820933258,-453.67888645,0.00010959,2]
[336423183,1724820933276,-158.25111355,0.00010959,2]
[336423184,1724820933288,-427.11888645,0.00010959,2]
[336423185,1724820933302,-82.83111355,0.00010959,2]
[336423186,1724820933311,-417.16888645,0.00010959,2]
[336423187,1724820933324,-7.78111355,0.00010959,2]
[336423188,1724820933333,-354.13,0.00010959,2]
[336423189,1724820933343,-138.08888645,0.00010959,2]
[336423190,1724820933355,-67.15111355,0.00010959,2]
[336423191,1724820997075,-500.87094952,0.00010958,2]
[336423192,1724820997105,-500.0,0.00010958,2]
[336423193,1724820997135,-500.0,0.00010958,2]
[336423194,1724820997165,-502.96904072,0.00010958,2]
[336423195,1724820997197,-500.0,0.00010958,2]
[336423196,1724820997232,-500.0,0.00010958,2]
[336423197,1724820997261,-500.0,0.00010958,2]
[336423198,1724820997293,-358.89752231,0.00010958,2]
[336423199,1724820997326,-500.0,0.00010958,2]
[336423200,1724820997354,-299.49134427,0.00010958,2]
[336423201,1724820997386,-503.08686643,0.00010958,2]
[336423202,1724820997418,-500.0,0.00010958,2]
[336423203,1724820997449,-1173.24,0.00010958,2]
[336423204,1724820997468,-500.87094952,0.00010958,2]
[336423205,1724820997479,-500.0,0.00010958,2]
[336423206,1724820997490,-500.0,0.00010958,2]
[336423207,1724820997506,-502.96904072,0.00010958,2]
[336423208,1724820997519,-500.0,0.00010958,2]
[336423209,1724820997534,-500.0,0.00010958,2]
[336423210,1724820997547,-500.0,0.00010958,2]
[336423211,1724820997558,-358.89752231,0.00010958,2]
[336423212,1724820997572,-500.0,0.00010958,2]
[336423213,1724820997585,-299.49134427,0.00010958,2]
[336423214,1724820997598,-503.08686643,0.00010958,2]
[336423215,1724820997610,-500.0,0.00010958,2]
[336423216,1724820997629,-778.35427675,0.00010958,2]
[336423217,1724820997638,-394.88572325,0.00010958,2]
[336423218,1724820997650,-105.11427675,0.00010958,2]
[336423219,1724820997661,-277.42670703,0.00010958,2]
[336423220,1724820997670,-89.87,0.00010959,2]
[336423221,1724820997679,-245.92,0.00010959,2]
[336423222,1724820997688,-204.94,0.00010959,2]
[336423223,1724820997699,-170.78,0.00010959,2]
[336423224,1724820997709,-853.92,0.00010959,2]
[336423225,1724820997718,-1066.88937681,0.00010959,2]
[336423226,1724821015131,-24900.0,0.00010755,2]
[336423252,1724821215496,1093.49344924,0.000105,2]
[336423266,1724821324399,2999.17623735,0.0001026,2]
[336423267,1724821332095,-300.0,0.00010543,2]
[336423268,1724821332124,-300.0,0.00010543,2]
[336423269,1724821332152,-7985.02986348,0.00010544,2]
[336423270,1724821332181,-934.65211132,0.00010739,2]
[336423271,1724821332209,-210.1449407,0.00010739,2]
[336423272,1724821332241,-180.95755433,0.00010739,2]
[336423273,1724821332270,-245.71996244,0.00010755,2]
[336423274,1724821332301,-544.51359376,0.00010958,2]
[336423275,1724821332336,-223.73028006,0.00010958,2]
[336423276,1724821332365,-500.0,0.00010958,2]
[336423277,1724821332395,-500.0,0.00010958,2]
[336423278,1724821332424,-500.0,0.00010958,2]
[336423279,1724821332455,-500.0,0.00010958,2]
[336423280,1724821332486,-500.0,0.00010958,2]
[336423281,1724821332516,-573.14,0.00010958,2]
[336423282,1724821332547,-371.07159877,0.00010958,2]
[336423283,1724821332576,-502.4938907,0.00010958,2]
[336423284,1724821332607,-500.0,0.00010958,2]
[336423285,1724821332638,-500.0,0.00010958,2]
[336423286,1724821332667,-502.69517344,0.00010958,2]
[336423287,1724821332697,-529.51,0.00010958,2]
[336423288,1724821332727,-500.0,0.00010958,2]
[336423289,1724821332757,-500.0,0.00010958,2]
[336423290,1724821332788,-500.0,0.00010958,2]
[336423291,1724821332820,-500.0,0.00010958,2]
[336423292,1724821332852,-500.0,0.00010958,2]
[336423293,1724821332880,-500.0,0.00010958,2]
[336423294,1724821348340,7985.02986348,0.0001026,2]
[336423295,1724821450864,180.95755433,0.0001026,2]
[336423296,1724821457183,545.78245887,0.0001026,2]
[336423297,1724821463472,288.55434071,0.0001026,2]
[336423299,1724821513114,500.0,0.00025,120]
[336423300,1724821513486,500.0,0.00025,120]
[336423301,1724821513759,500.0,0.00025,120]
[336423302,1724821514032,500.0,0.00025,120]
[336423303,1724821514298,500.0,0.00025,120]
[336423304,1724821514572,500.0,0.00025,120]
[336423305,1724821514859,500.0,0.00025,120]
[336423306,1724821515110,239.84,0.00025,120]
[336423307,1724821538076,-300.0,0.00010957,2]
[336423308,1724821538098,-262.0,0.00010957,2]
[336423309,1724821538120,-359.14010502,0.00010958,2]
[336423310,1724821601511,6907.00609602,0.00010098,2]
[336423312,1724821626095,-198.41323542,0.00010097,2]
[336423314,1724821748281,-490.0,0.00010097,2]
[336423315,1724821762145,-997.06972602,0.00010097,2]
[336423316,1724821762169,-281.57328079,0.00010097,2]
[336423317,1724821762194,-300.0,0.00010097,2]
[336423318,1724821762219,-17544.38591735,0.00010098,2]
[336423319,1724821765119,-188.03647284,0.00010098,2]
[336423320,1724821770133,-230.58839238,0.00010098,2]
[336423436,1724821838498,-204.31259733,9.997e-05,2]
[336423438,1724821838509,-29.98312141,0.00010098,2]
[336423440,1724821838518,-998.60195726,0.00010957,2]
[336423442,1724821838528,-300.0,0.00010957,2]
[336423444,1724821838538,-500.0,0.00010958,2]
[336423446,1724821838547,-500.0,0.00010958,2]
[336423448,1724821838557,-500.0,0.00010958,2]
[336423450,1724821838568,-500.0,0.00010958,2]
[336423453,1724821838578,-500.0,0.00010958,2]
[336423455,1724821838588,-469.96,0.00010958,2]
[336423457,1724821838597,-572.47813899,0.00010958,2]
[336423459,1724821838606,-500.0,0.00010958,2]
[336423462,1724821838615,-500.0,0.00010958,2]
[336423465,1724821838625,-244.27,0.00010958,2]
[336423468,1724821838634,-500.0,0.00010958,2]
[336423471,1724821838643,-500.0,0.00010958,2]
[336423473,1724821838653,-250.0,0.00010958,2]
[336423475,1724821838663,-500.0,0.00010958,2]
[336423478,1724821838672,-500.0,0.00010958,2]
[336423480,1724821838682,-500.0,0.00010958,2]
[336423482,1724821838692,-500.0,0.00010958,2]
[336423484,1724821838703,-500.0,0.00010958,2]
[336423486,1724821838713,-500.0,0.00010958,2]
[336423488,1724821838723,-500.0,0.00010958,2]
[336423490,1724821838733,-502.67179824,0.00010958,2]
[336423492,1724821838743,-500.0,0.00010958,2]
[336423495,1724821838753,-500.0,0.00010958,2]
[336423497,1724821838763,-500.0,0.00010958,2]
[336423499,1724821838772,-500.0,0.00010958,2]
[336423501,1724821838782,-500.0,0.00010958,2]
[336423503,1724821838791,-151.62,0.00010958,2]
[336423505,1724821838801,-500.0,0.00010958,2]
[336423507,1724821838810,-500.0,0.00010958,2]
[336423509,1724821838820,-500.0,0.00010958,2]
[336423511,1724821838830,-500.0,0.00010958,2]
[336423513,1724821838840,-500.0,0.00010958,2]
[336423515,1724821838849,-500.0,0.00010958,2]
[336423517,1724821838859,-500.0,0.00010958,2]
[336423519,1724821838870,-500.0,0.00010958,2]
[336423521,1724821838880,-500.0,0.00010958,2]
[336423523,1724821838891,-500.0,0.00010958,2]
[336423525,1724821838900,-500.0,0.00010958,2]
[336423527,1724821838910,-500.0,0.00010958,2]
[336423529,1724821838919,-501.55363098,0.00010958,2]
[336423531,1724821838929,-500.0,0.00010958,2]
[336423533,1724821838939,-500.0,0.00010958,2]
[336423535,1724821838948,-500.0,0.00010958,2]
[336423536,1724821838957,-500.0,0.00010958,2]
[336423538,1724821838966,-500.0,0.00010958,2]
[336423541,1724821838976,-500.0,0.00010958,2]
[336423542,1724821838985,-500.0,0.00010958,2]
[336423544,1724821838994,-500.0,0.00010958,2]
[336423547,1724821839003,-500.0,0.00010958,2]
[336423549,1724821839012,-500.0,0.00010958,2]
[336423551,1724821839022,-500.0,0.00010958,2]
[336423553,1724821839031,-500.0,0.00010958,2]
[336423555,1724821839042,-500.0,0.00010958,2]
[336423557,1724821839053,-500.0,0.00010958,2]
[336423559,1724821839063,-500.0,0.00010958,2]
[336423561,1724821839073,-500.0,0.00010958,2]
[336423563,1724821839084,-500.0,0.00010958,2]
[336423565,1724821839095,-617.06,0.00010958,2]
[336423568,1724821839106,-500.0,0.00010958,2]
[336423570,1724821839116,-202.68,0.00010958,2]
[336423572,1724821839126,-210.75469539,0.00010958,2]
[336423574,1724821839135,-507.55,0.00010958,2]
[336423576,1724821839145,-500.0,0.00010958,2]
[336423578,1724821839154,-500.0,0.00010958,2]
[336423580,1724821839164,-500.0,0.00010958,2]
[336423582,1724821839173,-500.0,0.00010958,2]
[336423584,1724821839183,-500.0,0.00010958,2]
[336423586,1724821839204,-500.87673183,0.00010958,2]
[336423588,1724821839213,-500.0,0.00010958,2]
[336423590,1724821839222,-500.0,0.00010958,2]
[336423592,1724821839232,-501.9492327,0.00010958,2]
[336423594,1724821839241,-500.0,0.00010958,2]
[336423596,1724821839250,-500.0,0.00010958,2]
[336423598,1724821839260,-626.62,0.00010958,2]
[336423600,1724821839270,-500.0,0.00010958,2]
[336423602,1724821839280,-500.0,0.00010958,2]
[336423604,1724821839290,-500.0,0.00010958,2]
[336423606,1724821839299,-500.0,0.00010958,2]
[336423608,1724821839308,-500.0,0.00010958,2]
[336423610,1724821839318,-500.0,0.00010958,2]
[336423612,1724821839327,-500.0,0.00010958,2]
[336423614,1724821839337,-512.49876846,0.00010958,2]
[336423617,1724821839347,-500.0,0.00010958,2]
[336423619,1724821839356,-500.0,0.00010958,2]
[336423620,1724821839366,-500.0,0.00010958,2]
[336423623,1724821839376,-500.0,0.00010958,2]
[336423625,1724821839385,-500.59762837,0.00010958,2]
[336423627,1724821839395,-500.0,0.00010958,2]
[336423629,1724821839405,-500.0,0.00010958,2]
[336423631,1724821839414,-500.0,0.00010958,2]
[336423633,1724821839426,-500.0,0.00010958,2]
[336423635,1724821839435,-1271.99,0.00010958,2]
[336423637,1724821839445,-500.0,0.00010958,2]
[336423639,1724821839454,-410.11641657,0.00010958,2]
[336423641,1724821839463,-500.0,0.00010958,2]
[336423643,1724821839472,-500.0,0.00010958,2]
[336423645,1724821839484,-4358.7,0.00010958,2]
[336423647,1724821839496,-566.62755411,0.00010958,2]
[336423649,1724821839505,-154.88848348,0.00010958,2]
[336423651,1724821839515,-500.0,0.00010958,2]
[336423653,1724821839524,-500.0,0.00010958,2]
[336423655,1724821839533,-500.0,0.00010958,2]
[336423657,1724821839542,-500.0,0.00010958,2]
[336423659,1724821839552,-500.0,0.00010958,2]
[336423661,1724821839563,-500.15245384,0.00010958,2]
[336423663,1724821839573,-500.0,0.00010958,2]
[336423665,1724821839582,-1793.72,0.00010958,2]
[336423667,1724821839592,-500.0,0.00010958,2]
[336423669,1724821839601,-500.0,0.00010958,2]
[336423671,1724821839610,-500.0,0.00010958,2]
[336423673,1724821839619,-500.0,0.00010958,2]
[336423675,1724821839628,-602.32598024,0.00010958,2]
[336423677,1724821839638,-1671.46,0.00010958,2]
[336423679,1724821839648,-500.0,0.00010958,2]
[336423681,1724821839657,-500.0,0.00010958,2]
[336423683,1724821839667,-865.28,0.00010958,2]
[336423685,1724821839677,-500.0,0.00010958,2]